bitfinex/quotes_ETHUSD_20250222
["timestamp","ask_amount","ask_price","bid_price","bid_amount"]
[1740238883692,5.3016,2753.6,2753.5,3.92959282]
[1740238885040,5.3016,2753.6,2753.5,0.29785282]
[1740238885439,5.3016,2753.6,2753.5,3.92959282]
[1740238889974,5.3016,2753.6,2753.5,0.29785282]
[1740238891171,6.1032,2753.6,2753.5,0.29785282]
[1740238891352,0.8016,2753.2,2752.7,0.7902]
[1740238891551,0.8016,2753.2,2752.6,7.26572]
[1740238891729,4.43375,2753.2,2752.8,0.29813954]
[1740238891927,0.8016,2753.2,2752.9,3.6325]
[1740238892241,0.8016,2753.4,2752.9,7.56298428]
[1740238892626,0.8016,2753.4,2752.9,7.56292428]
[1740238892841,0.8016,2753.4,2752.9,3.93048428]
[1740238893266,4.43349,2753.4,2752.9,3.93048428]
[1740238893741,0.8016,2753.4,2752.9,3.93048428]
[1740238895140,4.43349,2753.4,2752.9,3.93048428]
[1740238895370,0.8016,2753.4,2752.9,3.93048428]
[1740238895672,0.8016,2753.4,2752.9,7.56291428]
[1740238895875,4.43347,2753.4,2752.9,0.29806428]
[1740238896176,8.93334,2753.5,2752.7,3.63272]
[1740238896177,0.7867,2753.2,2752.7,3.63272]
[1740238896356,0.7867,2753.2,2753.0,0.2979033]
[1740238896677,5.3016,2753.1,2752.7,3.63272]
[1740238897267,5.3016,2753.1,2752.8,3.63266]
[1740238899057,5.3016,2753.1,2752.8,3.63262]
[1740238900840,5.3016,2753.1,2752.8,3.63258]
[1740238903076,5.3016,2753.1,2752.8,7.26515]
[1740238903275,5.3016,2753.1,2753.0,4.3861]
[1740238908296,5.3016,2753.7,2753.0,4.3861]
[1740238908481,5.3016,2753.7,2753.5,3.63169]
[1740238908680,5.3016,2753.7,2753.6,3.6316]
[1740238910159,5.3016,2753.7,2753.6,3.92910331]
[1740238911054,5.3016,2753.7,2753.6,0.29750331]
[1740238916510,5.3016,2753.7,2753.6,3.92910331]
[1740238921027,5.3016,2753.7,2753.6,0.29750331]
[1740238921196,5.3016,2753.7,2753.6,3.92910331]
[1740238923775,5.3016,2753.7,2753.6,0.29750331]
[1740238924494,5.3016,2753.7,2753.6,3.92910331]
[1740238927736,5.3016,2753.7,2753.6,0.29750331]
[1740238928808,5.3016,2753.7,2753.6,3.92910331]
[1740238929335,5.3016,2753.7,2753.6,0.29750331]
[1740238929717,11.39820714,2753.7,2753.6,0.29750331]
[1740238929925,6.95023714,2753.7,2752.9,4.35575466]
[1740238930235,3.63184,2753.5,2753.0,0.29744909]
[1740238930411,0.8165,2753.4,2753.0,3.29744909]
[1740238932122,0.8165,2753.4,2753.0,6.92975909]
[1740238933541,3.63211,2753.3,2753.0,0.29744909]
[1740238933739,0.8165,2753.2,2753.0,0.29744909]
[1740238933947,0.8165,2753.2,2753.0,3.92974909]
[1740238934150,0.8165,2753.5,2753.0,0.29744909]
[1740238934437,0.8165,2753.5,2753.2,7.26416]
[1740238934606,0.8165,2753.5,2753.2,7.26408]
[1740238934806,0.8165,2753.5,2753.3,3.92918335]
[1740238935042,5.3016,2753.4,2753.3,3.92918335]
[1740238937225,5.3016,2753.4,2753.3,4.6587064]
[1740238937562,5.3016,2753.4,2753.3,5.4667064]
[1740238937764,5.3016,2753.4,2753.3,4.6587064]
[1740238937968,5.3016,2753.4,2753.3,3.92918335]
[1740238941763,5.3016,2753.4,2753.3,0.29722335]
[1740238941970,6.1181,2753.4,2753.3,0.29722335]
[1740238942116,6.1181,2753.4,2753.3,0.29736046]
[1740238942517,6.1181,2753.4,2753.1,0.72272062]
[1740238942764,6.1181,2753.4,2753.2,0.2974357]
[1740238944013,6.1181,2753.4,2753.0,3.63237]
[1740238944231,6.1181,2753.4,2753.3,0.29730904]
[1740238944734,6.1181,2753.4,2752.8,7.26516]
[1740238945056,6.1181,2753.4,2752.9,3.93011003]
[1740238945260,6.1181,2753.4,2753.1,3.63219]
[1740238945433,6.1181,2753.4,2753.0,4.38718]
[1740238945634,6.1181,2753.4,2753.2,3.92950428]
[1740238945837,6.1181,2753.4,2753.2,3.63212]
[1740238946036,6.1181,2753.4,2753.3,0.2973776]
[1740238946453,6.1181,2753.4,2753.2,3.63212]
[1740238946655,6.1181,2753.4,2753.3,0.2973776]
[1740238947022,6.1181,2753.4,2753.2,3.63212]
[1740238947247,6.1181,2753.4,2753.3,0.2973776]
[1740238947650,6.1181,2753.4,2753.2,3.63201]
[1740238947838,5.3016,2753.4,2753.3,3.9293776]
[1740238959478,5.3016,2753.4,2753.3,4.7503776]
[1740238965242,5.3016,2753.4,2753.3,3.9293776]
[1740238966349,5.3016,2753.4,2753.3,0.2973776]
[1740238966549,5.3016,2753.4,2753.3,3.632]
[1740238966978,5.3016,2753.4,2753.3,3.92919764]
[1740238968786,5.3016,2753.4,2753.3,0.29719764]
[1740238968940,6.091,2753.4,2753.3,0.29719764]
[1740238969340,6.091,2753.4,2753.1,0.72733092]
[1740238969678,6.091,2753.4,2753.2,0.2973243]
[1740238970053,0.7664,2753.3,2753.2,0.2973243]
[1740238970869,0.7664,2753.3,2752.7,3.0]
[1740238970870,4.3984,2753.3,2752.7,3.0]
[1740238971045,4.3984,2753.3,2753.2,0.2973243]
[1740238971246,4.3984,2753.3,2752.6,3.63286]
[1740238971247,4.39855,2753.2,2752.6,3.63286]
[1740238971489,2.41503714,2753.2,2752.6,3.63286]
[1740238971856,2.41503714,2753.2,2752.6,7.2657]
[1740238972371,2.41503714,2753.2,2752.6,3.63284]
[1740238972575,2.41503714,2753.2,2752.6,3.63283]
[1740238972812,2.41503714,2753.2,2752.7,3.63275]
[1740238973176,2.41503714,2753.2,2752.8,3.63265]
[1740238973380,0.7664,2753.2,2752.9,3.63243]
[1740238973951,5.3016,2753.1,2752.9,3.63243]
[1740238974288,5.3016,2753.0,2752.9,3.63243]
[1740238976853,5.3016,2753.0,2752.9,6.63243]
[1740238977053,5.3016,2753.0,2752.9,8.432038]
[1740238979790,6.068,2753.7,2753.0,3.0]
[1740238979997,6.068,2753.7,2753.3,3.6319]
[1740238981404,6.068,2753.7,2753.3,7.26381]
[1740238981586,6.068,2753.7,2753.3,3.6319]
[1740238982404,1.64863714,2753.5,2752.9,5.13800481]
[1740238982708,0.7664,2753.4,2752.9,4.36483481]
[1740238983658,0.7664,2753.4,2753.0,3.63231]
[1740238983855,4.39829,2753.4,2752.7,3.63274]
[1740238984215,0.7664,2753.2,2752.7,3.63274]
[1740238985010,6.0765,2753.1,2752.6,3.63292]
[1740238985195,6.0765,2753.1,2752.8,0.29829381]
[1740238985196,1.64863714,2752.9,2752.8,0.29829381]
[1740238985504,2.42353714,2752.9,2752.4,3.63318]
[1740238985705,0.7749,2752.9,2752.8,0.29839668]
[1740238985908,0.7749,2752.9,2752.1,0.7714]
[1740238985909,1.64863714,2752.9,2752.2,3.0]
[1740238986108,4.40759,2752.8,2752.2,6.63344]
[1740238986408,0.7749,2752.6,2752.2,3.0]
[1740238986561,0.7749,2752.6,2752.2,6.63345]
[1740238986997,0.7749,2752.6,2752.2,3.63345]
[1740238987159,0.7749,2752.6,2752.1,3.63357]
[1740238987353,0.7749,2752.6,2752.1,3.63349]
[1740238988055,0.7749,2752.6,2751.9,0.7714]
[1740238988261,5.3016,2752.5,2752.4,3.63315]
[1740238992406,6.1016,2752.5,2752.4,3.63315]
[1740238992998,9.73468,2752.5,2752.1,0.73686048]
[1740238993198,8.93473,2752.5,2752.1,0.73686048]
[1740238993414,0.8,2752.2,2752.1,0.73686048]
[1740238993822,0.8,2752.2,2751.4,6.63444]
[1740238993823,0.55,2752.4,2751.4,3.63444]
[1740238994027,0.55,2752.4,2751.3,3.63456]
[1740238994028,0.8,2751.9,2751.3,3.63456]
[1740238994193,6.0754,2751.8,2751.3,3.63456]
[1740238994391,6.0754,2751.8,2751.4,3.6345]
[1740238994611,6.0754,2751.8,2751.3,3.63456]
[1740238995687,6.0754,2751.8,2751.1,3.63486]
[1740238995688,6.0754,2751.8,2751.2,3.63475]
[1740238995993,6.0754,2751.8,2751.1,3.63486]
[1740238995994,6.0754,2751.8,2751.3,3.63464]
[1740238996822,6.0754,2751.8,2751.3,7.26917]
[1740238996986,0.19908015,2751.7,2751.3,7.26917]
[1740238997393,0.19908015,2751.7,2751.1,3.63482]
[1740238997603,5.3016,2751.6,2751.2,3.63477]
[1740238998007,5.3016,2751.6,2751.3,3.63463]
[1740238998525,5.3016,2751.6,2751.1,3.63482]
[1740238998681,5.3016,2751.6,2751.2,3.63475]
[1740238999649,0.7738,2751.5,2751.2,3.63475]
[1740238999813,0.7738,2751.5,2751.1,3.63482]
[1740239000014,0.7738,2751.5,2751.2,3.63477]
[1740239000216,0.7738,2751.5,2751.2,0.30116235]
[1740239000636,0.7738,2751.5,2751.0,4.35180352]
[1740239000833,0.7738,2751.5,2751.3,0.301087]
[1740239001040,0.7738,2751.5,2751.2,3.63475]
[1740239001204,0.7738,2751.5,2751.0,4.35180352]
[1740239001205,0.7738,2751.5,2751.4,0.30101165]
[1740239001545,0.7738,2751.5,2751.0,4.35177352]
[1740239001755,0.7738,2751.5,2751.4,0.30101165]
[1740239002204,0.7738,2751.5,2751.0,4.35177352]
[1740239002404,5.3016,2751.4,2751.1,0.3012377]
[1740239003251,5.3016,2751.4,2751.1,3.9361377]
[1740239003410,5.3016,2751.4,2751.3,3.63464]
[1740239003748,5.3016,2751.4,2751.3,3.935727]
[1740239004826,5.3016,2751.4,2751.3,0.301087]
[1740239005372,5.3016,2751.4,2751.2,3.63466]
[1740239005524,5.3016,2751.4,2751.3,0.301087]
[1740239006211,5.3016,2751.4,2751.2,3.63466]
[1740239006413,5.3016,2751.4,2751.3,0.301087]
[1740239006659,5.3016,2751.4,2751.2,3.63466]
[1740239006843,5.3016,2751.4,2751.3,0.301087]
[1740239007617,5.3016,2751.4,2751.2,3.63466]
[1740239007806,5.3016,2751.4,2751.3,3.935727]
[1740239012863,6.0897,2751.4,2751.3,0.301087]
[1740239013362,6.0897,2751.4,2751.2,3.63477]
[1740239013550,6.0897,2751.4,2751.3,0.30177328]
[1740239013963,6.0897,2751.4,2751.2,3.63469]
[1740239014293,5.3016,2751.4,2751.3,3.93641328]
[1740239016275,5.3016,2751.4,2751.3,4.73621328]
[1740239016689,5.3016,2751.7,2751.6,3.63424]
[1740239016857,0.7881,2752.1,2751.8,3.63388]
[1740239017053,0.7881,2752.1,2751.6,3.93577443]
[1740239017243,0.7881,2752.1,2751.9,0.30133846]
[1740239017440,0.7881,2752.1,2751.6,3.63421]
[1740239017640,0.7881,2752.1,2752.0,0.30126315]
[1740239017960,0.7881,2752.1,2751.7,3.63403]
[1740239018372,0.98751807,2752.1,2751.8,0.30141378]
[1740239018690,0.98751807,2752.1,2751.7,3.63403]
[1740239018847,0.98751807,2752.1,2751.9,0.30133846]
[1740239019047,0.98751807,2752.1,2751.8,0.30141378]
[1740239019250,0.98751807,2752.1,2752.0,0.30126315]
[1740239019484,0.98751807,2752.1,2751.9,0.30133846]
[1740239019790,0.7881,2752.1,2752.0,0.30126315]
[1740239020145,0.7881,2752.1,2751.7,3.63403]
[1740239020381,0.7881,2752.1,2752.0,0.30126315]
[1740239020585,0.7881,2752.1,2751.6,3.63414]
[1740239020743,0.7881,2752.1,2752.0,0.30126315]
[1740239021286,0.7881,2752.1,2751.6,3.63414]
[1740239021482,5.3016,2752.0,2751.6,3.63414]
[1740239022402,5.3016,2752.0,2751.4,3.63443]
[1740239022403,0.7881,2751.9,2751.4,3.63443]
[1740239022694,0.7881,2751.9,2751.4,3.63442]
[1740239022891,0.7881,2751.9,2751.5,3.63436]
[1740239023793,0.7881,2751.9,2751.4,7.26885]
[1740239024087,0.7881,2751.9,2751.5,3.63438]
[1740239025528,0.7881,2751.9,2751.7,3.6341]
[1740239026089,0.7881,2751.9,2751.5,3.63432]
[1740239026695,0.7881,2751.9,2751.6,3.63422]
[1740239026983,0.7881,2751.9,2751.5,3.63434]
[1740239027176,0.7881,2751.9,2751.5,3.6343]
[1740239027375,5.3016,2751.8,2751.5,7.2686]
[1740239027573,5.3016,2751.8,2751.7,3.63411]
[1740239027744,5.3016,2751.8,2751.6,3.63424]
[1740239027945,6.0722,2751.8,2751.6,3.63424]
[1740239028349,6.0722,2751.8,2751.5,3.63433]
[1740239028983,6.0722,2751.8,2751.5,3.62974193]
[1740239029463,6.0722,2751.8,2751.1,8.7678199]
[1740239029671,0.7658,2751.7,2751.1,4.3491299]
[1740239030271,0.7658,2751.7,2751.2,0.30144538]
[1740239030607,5.3016,2751.6,2751.2,0.30144538]
[1740239030780,0.7658,2751.5,2751.2,0.30144538]
[1740239031586,0.7658,2751.5,2750.9,3.63507]
[1740239031897,5.3016,2751.4,2751.1,3.63487]
[1740239032209,5.3016,2751.4,2751.2,0.30149686]
[1740239032410,5.3016,2751.4,2751.3,3.63464]
[1740239032708,5.3016,2751.4,2751.3,3.93606151]
[1740239045220,5.3016,2751.4,2751.3,4.72106151]
[1740239045547,0.7869,2752.2,2751.5,0.785]
[1740239045745,0.7869,2752.2,2752.1,3.63358]
[1740239045925,6.1069,2752.2,2752.1,3.63358]
[1740239046095,6.1069,2752.2,2752.1,3.93481931]
[1740239046627,6.1069,2752.2,2752.1,0.30123931]
[1740239049107,6.1069,2752.2,2752.1,3.93481931]
[1740239051836,6.1069,2752.2,2752.1,0.30123931]
[1740239052241,9.72045,2752.2,2752.1,0.30123931]
[1740239052554,9.72045,2752.2,2751.1,0.263]
[1740239052555,0.767,2751.9,2751.2,3.63474]
[1740239052856,6.087,2751.8,2751.5,3.63425]
[1740239053154,6.087,2751.8,2751.6,3.63424]
[1740239053752,6.087,2751.8,2751.7,3.63411]
[1740239054058,5.32,2751.8,2751.7,3.63411]
[1740239057034,5.32,2751.9,2751.7,3.63411]
[1740239059457,5.32,2751.9,2751.6,3.63424]
[1740239059665,5.32,2751.9,2751.6,7.26831]
[1740239059959,5.32,2751.9,2751.6,3.63415]
[1740239060132,5.32,2751.9,2751.7,0.30114589]
[1740239064566,0.8024,2751.8,2751.7,0.30114589]
[1740239065967,5.32,2751.9,2751.7,3.93525589]
[1740239066667,5.32,2751.9,2751.7,0.30114589]
[1740239069129,5.32,2751.9,2751.5,4.377277]
[1740239069335,5.32,2751.9,2751.4,3.63444]
[1740239069336,8.95386,2751.9,2751.8,0.30114778]
[1740239069565,9.73306,2751.9,2751.4,3.63444]
[1740239069867,9.73306,2751.9,2751.8,0.30114778]
[1740239070069,9.73306,2751.9,2751.4,3.63444]
[1740239070233,9.73306,2751.9,2751.8,0.30114778]
[1740239070432,9.73306,2751.9,2751.4,3.63444]
[1740239070645,9.73306,2751.9,2751.8,0.30114778]
[1740239070875,9.73306,2751.9,2751.4,7.26887]
[1740239071476,9.73306,2751.9,2751.5,0.30137376]
[1740239075161,8.95386,2751.9,2751.5,0.30137376]
[1740239075361,3.63412,2751.7,2751.1,3.63482]
[1740239075549,5.32,2751.6,2751.1,3.63482]
[1740239077041,5.32,2751.6,2751.1,7.26964]
[1740239077875,0.7792,2751.5,2751.1,3.63482]
[1740239078199,0.7792,2751.5,2751.2,3.63477]
[1740239079074,0.7792,2751.5,2751.1,3.63482]
[1740239080741,5.32,2751.4,2751.1,3.63482]
[1740239084170,5.32,2751.4,2751.1,7.26964]
[1740239084689,5.32,2751.4,2751.1,3.63482]
[1740239084991,5.32,2751.4,2751.3,3.63464]
[1740239086946,5.32,2751.4,2751.2,3.63475]
[1740239087768,5.32,2751.4,2751.3,3.63464]
[1740239090269,5.32,2751.4,2751.3,3.93659349]
[1740239092897,5.3024,2751.4,2751.3,3.93659349]
[1740239093103,5.3024,2751.4,2751.3,4.69372984]
[1740239094607,5.3024,2751.4,2751.3,8.47172984]
[1740239094902,0.7958,2752.5,2752.1,3.63358]
[1740239095102,0.7958,2752.5,2752.3,3.63329]
[1740239095397,0.7958,2752.5,2752.4,0.30103059]
[1740239095811,0.7958,2752.5,2752.1,3.63349]
[1740239096103,0.7958,2753.0,2752.4,3.93422059]
[1740239096271,0.7958,2753.0,2752.4,3.63319]
[1740239096602,0.7958,2753.0,2752.5,0.30059497]
[1740239097110,0.7958,2753.0,2752.6,3.6329]
[1740239097322,0.7958,2753.0,2752.6,3.63292]
[1740239097604,0.7958,2753.4,2752.8,3.6326]
[1740239098107,0.7958,2753.4,2752.9,0.30029389]
[1740239098302,0.7958,2753.4,2753.0,3.6324]
[1740239098658,0.7958,2753.4,2753.1,0.29980031]
[1740239099203,5.32,2753.3,2753.1,0.29980031]
[1740239100265,5.32,2753.3,2753.1,3.93202031]
[1740239100561,5.32,2753.3,2753.1,0.29980031]
[1740239101109,5.32,2753.3,2752.9,3.63251]
[1740239101305,5.32,2753.3,2753.2,0.29940782]
[1740239101507,5.32,2753.3,2752.9,3.63253]
[1740239101704,5.32,2753.3,2753.2,0.29940782]
[1740239101873,5.32,2753.3,2752.9,3.63253]
[1740239102077,5.32,2753.3,2753.2,0.29940782]
[1740239102276,5.32,2753.3,2752.9,3.63253]
[1740239102468,5.32,2753.3,2753.2,0.29926208]
[1740239102671,5.32,2753.3,2752.9,3.63253]
[1740239103314,5.32,2753.3,2753.0,0.29941258]
[1740239103967,3.63274,2752.8,2752.2,1.50059332]
[1740239104169,0.7958,2752.7,2752.2,5.13403332]
[1740239104511,0.7958,2752.7,2752.2,1.50059332]
[1740239105008,0.7958,2752.7,2752.2,0.778]
[1740239105212,0.7958,2752.7,2752.3,0.2988245]
[1740239105366,0.7958,2752.7,2752.2,0.778]
[1740239105571,0.7958,2752.7,2752.4,0.29874921]
[1740239105782,0.7958,2752.7,2752.2,0.778]
[1740239106103,0.7958,2752.7,2752.5,0.29867393]
[1740239106303,0.7958,2752.7,2752.2,0.778]
[1740239106502,0.7958,2752.7,2752.6,0.29859865]
[1740239106706,0.7958,2752.7,2752.2,0.778]
[1740239106908,9.74861,2752.7,2752.6,0.29859865]
[1740239107084,3.63307,2752.5,2751.9,4.44913]
[1740239107515,3.63307,2752.5,2752.0,3.9327404]
[1740239108109,13.3815,2752.7,2752.0,3.9327404]
[1740239108310,13.3815,2752.7,2752.0,4.77092744]
[1740239108474,13.38151,2752.7,2752.0,4.77092744]
[1740239108670,9.74861,2752.7,2752.1,3.63352]
[1740239108871,6.1158,2752.7,2752.1,3.63352]
[1740239109120,6.1158,2752.7,2752.3,3.63329]
[1740239109408,6.1158,2752.7,2752.4,0.29919506]
[1740239109914,5.32,2752.7,2752.4,0.29919506]
[1740239110214,5.32,2752.7,2752.6,3.63292]
[1740239110389,5.32,2752.7,2752.6,4.43082]
[1740239110735,5.32,2753.2,2752.9,3.63247]
[1740239110911,5.32,2753.4,2753.0,3.63238]
[1740239111082,5.32,2753.4,2753.0,3.93112344]
[1740239111410,5.32,2753.7,2753.2,3.63205]
[1740239111798,5.32,2753.7,2753.3,0.29821759]
[1740239112047,5.32,2753.7,2753.3,3.63197]
[1740239112206,5.32,2753.7,2753.4,0.29813378]
[1740239112749,5.32,2753.7,2753.5,0.29805855]
[1740239112922,9.74859,2753.8,2753.2,3.63205]
[1740239113121,9.74859,2753.8,2753.3,0.29820902]
[1740239113459,9.74859,2753.8,2753.2,3.63205]
[1740239113611,9.74859,2753.8,2753.4,0.29813378]
[1740239113812,6.1172,2753.8,2753.3,3.63199]
[1740239114110,6.1172,2753.8,2753.4,0.29813378]
[1740239114313,6.1172,2753.8,2753.3,3.63199]
[1740239114649,6.1172,2753.8,2753.4,0.29743947]
[1740239114952,9.74856,2753.8,2753.2,3.63205]
[1740239115252,6.1172,2753.8,2753.4,3.63187]
[1740239115561,6.1172,2753.8,2753.5,0.29736424]
[1740239116354,3.6315,2753.7,2753.2,0.51863093]
[1740239116553,3.6315,2753.7,2753.6,0.29728902]
[1740239116724,3.6315,2753.7,2753.2,0.51863093]
[1740239116923,3.6315,2753.7,2753.3,0.7923928]
[1740239117824,3.6315,2753.7,2753.3,0.29751471]
[1740239118029,7.26309,2753.7,2753.3,0.29751471]
[1740239118268,7.26309,2753.7,2753.1,0.7979]
[1740239118553,3.6315,2753.7,2753.1,4.43014]
[1740239118757,3.6315,2753.7,2753.2,0.29758995]
[1740239118936,3.6315,2753.7,2753.2,1.13359194]
[1740239120058,7.26308,2753.7,2753.2,1.13359194]
[1740239120242,3.6315,2753.7,2753.2,1.13359194]
[1740239120628,3.6315,2753.7,2753.2,0.29758995]
[1740239121340,3.63162,2753.6,2753.2,0.29758995]
[1740239122551,3.6315,2753.7,2753.2,0.29758995]
[1740239123628,9.74859,2753.8,2753.2,3.92963995]
[1740239123954,6.1172,2753.8,2753.2,0.29758995]
[1740239124130,6.1172,2753.8,2753.3,3.63198]
[1740239124332,9.74858,2753.8,2753.4,0.29743947]
[1740239125469,9.74858,2753.8,2753.2,4.104824]
[1740239125931,9.74858,2753.8,2753.3,0.29751471]
[1740239126369,9.74858,2753.8,2753.2,4.104824]
[1740239126672,9.74858,2753.8,2753.4,0.29743947]
[1740239126871,9.74858,2753.8,2753.3,0.29751471]
[1740239127186,6.1172,2753.8,2753.4,0.29743947]
[1740239127343,5.32,2753.8,2753.4,3.92920947]
[1740239127530,5.32,2753.8,2753.4,0.29743947]
[1740239127729,8.95143,2753.8,2753.4,0.29743947]
[1740239127958,8.95143,2753.8,2753.3,0.88324887]
[1740239128355,8.95143,2753.8,2753.4,0.29747375]
[1740239128753,8.95143,2753.8,2753.3,0.88324887]
[1740239128950,8.95143,2753.8,2753.4,0.29747375]
[1740239129154,3.63151,2753.7,2753.4,0.29747375]
[1740239129438,8.95143,2753.8,2753.4,0.29747375]
[1740239129835,8.95143,2753.8,2753.3,0.88324887]
[1740239130036,8.95143,2753.8,2753.5,0.29739852]
[1740239130235,8.95143,2753.8,2753.3,0.88324887]
[1740239130470,3.63147,2753.7,2753.6,0.2973233]
[1740239130672,3.6315,2753.7,2753.3,0.88324887]
[1740239130886,3.6315,2753.7,2753.6,0.2973233]
[1740239131182,5.32,2753.8,2753.6,0.2973233]
[1740239137293,8.95115,2754.0,2753.6,0.2973233]
[1740239137699,3.63189,2753.4,2752.7,3.6327]
[1740239137895,3.63189,2753.4,2752.8,0.784]
[1740239137896,0.8259,2753.3,2752.8,0.784]
[1740239138052,5.32,2753.4,2753.0,3.63237]
[1740239138252,5.32,2753.4,2752.8,4.858239]
[1740239138559,5.32,2753.4,2753.0,3.63236]
[1740239138753,5.32,2753.4,2753.1,0.72560345]
[1740239138993,5.32,2753.4,2753.2,0.784]
[1740239139360,5.32,2753.4,2753.2,4.4161]
[1740239139583,5.32,2753.4,2753.2,5.29350335]
[1740239140597,5.32,2753.4,2753.3,3.632]
[1740239140754,5.32,2753.9,2753.3,3.632]
[1740239140959,8.95121,2753.9,2753.2,5.29350335]
[1740239142500,12.58253,2753.9,2753.2,5.29350335]
[1740239142661,12.58253,2753.9,2753.3,0.27038472]
[1740239143060,8.95121,2753.9,2753.3,3.90233472]
[1740239143259,8.95121,2753.9,2753.3,0.27038472]
[1740239143709,12.58253,2753.9,2753.2,4.4161]
[1740239144206,8.95121,2753.9,2753.2,4.4161]
[1740239144356,0.7663,2753.8,2753.1,0.72560345]
[1740239144558,3.63184,2753.5,2753.1,0.72560345]
[1740239145101,0.7663,2753.4,2753.1,0.72560345]
[1740239145397,0.7663,2753.4,2753.2,0.33346487]
[1740239146159,3.632,2753.3,2753.2,0.33346487]
[1740239146899,0.7663,2753.0,2752.6,0.7725]
[1740239147201,0.7663,2753.0,2752.7,0.33385153]
[1740239147385,3.63266,2752.8,2752.7,0.33385153]
[1740239147585,8.03133,2753.0,2752.7,0.33385153]
[1740239147758,4.39881,2753.0,2752.4,1.16574851]
[1740239148123,4.39881,2753.0,2752.5,3.33400624]
[1740239148401,3.63219,2753.2,2752.6,3.63292]
[1740239148578,4.39849,2753.2,2752.6,3.63292]
[1740239148759,4.39849,2753.2,2752.7,0.33428668]
[1740239149604,0.19976646,2753.1,2752.7,0.33428668]
[1740239150306,0.19976646,2753.1,2752.7,3.96704668]
[1740239151308,0.19976646,2753.1,2752.8,4.40546]
[1740239151615,0.7663,2753.2,2752.9,0.33413199]
[1740239151616,3.63213,2753.2,2752.9,0.33413199]
[1740239152425,5.32,2753.3,2752.9,0.33413199]
[1740239152579,8.952,2753.3,2752.9,0.33413199]
[1740239152909,5.32,2753.3,2752.9,0.33413199]
[1740239153415,8.95202,2753.3,2752.9,0.33413199]
[1740239155416,5.32,2753.3,2752.9,0.33413199]
[1740239156215,5.32,2753.3,2753.0,3.63235]
[1740239156583,5.32,2753.3,2753.1,0.33397733]
[1740239157075,8.95207,2753.3,2752.9,0.00145]
[1740239157278,9.77867,2753.3,2753.2,0.33390001]
[1740239157619,3.63227,2753.1,2752.9,0.00145]
[1740239157827,3.6324,2753.0,2752.9,0.00145]
[1740239159582,9.77867,2753.3,2752.9,0.00145]
[1740239160592,3.63213,2753.2,2752.9,0.00145]
[1740239160912,9.77865,2753.3,2752.9,0.00145]
[1740239161079,5.32,2753.2,2752.9,0.00145]
[1740239162134,3.6323,2753.1,2752.9,0.00145]
[1740239164430,5.32,2753.2,2752.9,0.00145]
[1740239165286,5.32,2753.2,2753.0,0.33412295]
[1740239167135,3.63221,2753.2,2753.0,0.33412295]
[1740239168029,6.1466,2753.3,2753.0,0.33412295]
[1740239168379,9.77867,2753.3,2753.0,0.33412295]
[1740239168518,6.1466,2753.3,2753.0,0.33412295]
[1740239169741,5.32,2753.3,2753.0,1.12842295]
[1740239170232,5.32,2753.3,2753.0,4.76080295]
[1740239170729,5.32,2753.3,2753.0,1.12842295]
[1740239171287,5.32,2753.3,2753.0,4.76079295]
[1740239171932,5.32,2753.3,2753.2,3.63213]
[1740239172435,5.32,2753.3,2753.2,3.96650784]
[1740239172795,0.0176,2753.4,2753.2,1.12867784]
[1740239172997,0.0176,2753.4,2753.3,3.632]
[1740239173498,0.0176,2753.4,2753.3,3.96621518]
[1740239178249,0.0176,2753.4,2753.3,4.87671076]
[1740239180967,0.0176,2753.4,2753.3,3.96621518]
[1740239183132,0.0176,2753.4,2753.3,0.33421518]
[1740239183332,0.0176,2753.4,2753.0,4.36745773]
[1740239183570,0.0176,2753.4,2753.1,0.33391757]
[1740239183880,3.64955,2753.4,2753.1,0.33391757]
[1740239184375,3.63213,2753.2,2753.1,0.33391757]
[1740239184579,4.42093,2753.2,2753.1,0.33391757]
[1740239184780,0.7888,2753.2,2753.1,0.33391757]
[1740239186777,5.32,2753.3,2753.1,3.63222]
[1740239186978,5.32,2753.3,2753.2,4.73712759]
[1740239187184,5.32,2753.3,2753.2,5.57406235]
[1740239188407,5.32,2753.3,2753.2,1.10499759]
[1740239188618,5.32,2753.3,2753.2,4.73712759]
[1740239188908,5.32,2753.3,2753.2,1.10499759]
[1740239190205,5.32,2753.3,2753.2,4.73712759]
[1740239190811,0.0176,2753.4,2753.3,3.632]
[1740239191232,0.0176,2753.4,2753.3,3.9658568]
[1740239193431,0.0176,2753.4,2753.3,0.3338568]
[1740239193794,0.0176,2753.4,2753.2,4.40333]
[1740239193991,0.0176,2753.4,2753.3,0.3338568]
[1740239194236,0.0176,2753.4,2753.2,4.40333]
[1740239194540,0.0176,2753.4,2753.3,3.9658568]
[1740239195833,0.8311,2753.4,2753.3,0.3338568]
[1740239196241,0.8311,2753.4,2753.2,7.2641]
[1740239196536,0.8311,2753.4,2753.3,0.33386533]
[1740239196833,0.8311,2753.4,2753.2,3.63204]
[1740239197046,0.8311,2753.4,2753.3,0.33386533]
[1740239197410,0.8311,2753.4,2753.2,3.63204]
[1740239197639,0.8311,2753.4,2753.3,0.33386533]
[1740239197997,0.0176,2753.4,2753.3,3.632]
[1740239198202,0.0176,2753.4,2753.3,3.96576294]
[1740239200099,0.0176,2753.4,2753.3,4.23622857]
[1740239200499,0.0176,2753.4,2753.3,5.79786443]
[1740239204009,0.0176,2753.4,2753.3,8.79786443]
[1740239204209,0.8135,2754.5,2753.6,0.7977]
[1740239204412,6.1335,2754.5,2754.3,3.63068]
[1740239204655,6.1335,2754.5,2754.4,0.33253746]
[1740239205210,5.32,2754.5,2754.4,3.63055]
[1740239205409,5.32,2754.8,2754.7,3.63015]
[1740239205633,5.32,2754.9,2754.7,3.96211459]